bitfinex/quotes_SOLUSD_20240625
["timestamp","ask_amount","ask_price","bid_price","bid_amount"]
[1719324328965,58.22981982,137.05,136.96,7.3012]
[1719324329158,29.96631242,137.04,136.94,0.17]
[1719324329471,18.2462,137.02,136.93,0.17]
[1719324329659,18.2487,137.0,136.91,15.4013]
[1719324329858,7.301,136.97,136.91,15.4013]
[1719324330158,7.301,136.97,136.91,22.7053]
[1719324330968,11.72261242,136.99,136.92,18.2584]
[1719324331147,11.72261242,136.99,136.94,7.3019]
[1719324331348,11.72261242,136.99,136.92,18.2584]
[1719324332065,19.02281242,136.99,136.93,7.3026]
[1719324332265,11.72261242,136.99,136.94,7.3024]
[1719324332767,19.02241242,136.99,136.93,7.3028]
[1719324332944,11.72261242,136.99,136.91,15.5713]
[1719324333141,11.72261242,136.99,136.91,15.4013]
[1719324333452,7.302,136.95,136.9,6.1337]
[1719324334056,7.3015,136.96,136.9,13.4381]
[1719324334251,7.301,136.97,136.9,13.4381]
[1719324334647,7.3005,136.98,136.91,18.2596]
[1719324334867,7.3009,136.97,136.91,25.5635]
[1719324335370,11.72261242,136.99,136.93,18.2569]
[1719324335565,7.2985,137.02,136.96,7.3012]
[1719324335955,11.72261242,137.04,136.95,25.5561]
[1719324336160,7.2994,137.0,136.94,7.4724]
[1719324336553,11.72261242,137.0,136.92,18.2577]
[1719324336854,7.3014,136.96,136.9,13.4381]
[1719324337073,7.3014,136.96,136.91,0.17]
[1719324337373,21.22383224,137.0,136.91,18.4299]
[1719324337576,7.3005,136.98,136.92,7.3031]
[1719324337772,21.22383224,137.0,136.93,7.3029]
[1719324337986,7.2999,136.99,136.93,7.3029]
[1719324338278,11.72261242,137.0,136.93,18.2569]
[1719324338480,19.02221242,137.0,136.91,0.17]
[1719324338688,7.3004,136.98,136.92,7.3034]
[1719324339190,11.72261242,137.0,136.93,0.17]
[1719324339596,7.2977,137.03,136.97,7.3007]
[1719324339800,7.2977,137.03,136.93,1.60565307]
[1719324339801,16.79841982,137.04,136.98,7.3002]
[1719324340298,9.50121982,137.04,136.96,18.2531]
[1719324340596,7.2982,137.02,136.96,25.5541]
[1719324341297,7.2987,137.01,136.96,18.2531]
[1719324341480,7.2987,137.01,136.95,22.9982]
[1719324342574,7.2983,137.02,136.96,7.3013]
[1719324342792,7.2978,137.03,136.97,7.3008]
[1719324343185,7.2988,137.01,136.95,41.2523]
[1719324343383,7.2983,137.02,136.96,7.3013]
[1719324343683,7.2983,137.02,136.96,7.4713]
[1719324344401,19.02041242,137.03,136.97,7.3008]
[1719324344993,7.2978,137.03,136.97,7.3008]
[1719324345302,16.79841982,137.04,136.98,7.3001]
[1719324345498,11.72261242,137.07,137.0,7.2991]
[1719324345696,11.72261242,137.07,136.96,6.6458]
[1719324345697,21.22383224,137.07,136.96,6.6458]
[1719324345875,21.22383224,137.07,136.98,18.2503]
[1719324346074,21.22383224,137.07,136.99,0.34]
[1719324346296,21.22383224,137.07,137.0,18.2475]
[1719324346495,9.50121982,137.07,137.02,7.2981]
[1719324346798,19.01671242,137.1,137.02,33.8962]
[1719324347002,19.01671242,137.1,137.04,7.297]
[1719324347296,25.73651982,137.12,137.04,18.2424]
[1719324347599,7.2935,137.11,137.05,7.2962]
[1719324348302,25.73651982,137.12,137.04,18.2424]
[1719324348804,7.2939,137.1,137.04,25.5394]
[1719324349102,7.2939,137.1,137.02,21.6765]
[1719324349103,7.2957,137.07,137.02,21.6765]
[1719324349402,7.2961,137.06,137.02,21.6765]
[1719324349699,27.73661982,137.1,136.98,41.1506]
[1719324349871,7.2966,137.05,136.99,7.2994]
[1719324350076,7.2965,137.06,136.99,7.2996]
[1719324350802,7.2956,137.07,137.01,7.2983]
[1719324351106,7.2967,137.05,137.0,18.2474]
[1719324351271,27.40693224,137.09,136.98,30.2009]
[1719324351601,7.2972,137.04,136.98,30.2009]
[1719324351822,7.2967,137.05,136.99,7.2996]
[1719324351986,7.296,137.07,136.99,18.2489]
[1719324352300,7.296,137.07,137.01,7.2983]
[1719324352481,7.295,137.08,137.02,7.2978]
[1719324352682,7.295,137.08,137.01,25.5449]
[1719324353293,7.295,137.08,137.02,7.2981]
[1719324353608,7.2959,137.07,137.01,25.545]
[1719324354808,45.64383224,137.09,136.98,41.1507]
[1719324355006,145.64383224,137.09,136.98,41.1507]
[1719324355206,7.2977,137.03,136.98,41.1507]
[1719324355420,7.2973,137.04,136.98,48.451]
[1719324355908,7.2978,137.03,136.98,34.799]
[1719324356600,7.2967,137.05,136.99,7.2997]
[1719324358304,27.40693224,137.09,137.0,7.6391]
[1719324358305,7.2964,137.06,137.0,7.6391]
[1719324358908,7.2966,137.05,137.0,0.34]
[1719324359496,7.2967,137.05,136.99,7.2997]
[1719324360201,127.40693224,137.09,137.01,7.2987]
[1719324360202,7.2957,137.07,137.01,7.2987]
[1719324360404,7.2957,137.07,137.0,18.4179]
[1719324360405,7.2965,137.06,137.0,25.717]
[1719324360627,7.2966,137.05,137.0,18.4179]
[1719324360800,27.40693224,137.09,137.0,18.4179]
[1719324360996,21.22383224,137.09,137.0,18.4179]
[1719324361213,21.22383224,137.09,136.98,16.5491]
[1719324361414,7.298,137.03,136.98,16.5491]
[1719324361616,7.2986,137.02,136.98,16.5491]
[1719324361819,7.2987,137.01,136.95,29.1793]
[1719324362332,7.2983,137.02,136.96,7.3012]
[1719324362703,7.2983,137.02,136.97,7.3008]
[1719324362909,7.2978,137.03,136.97,7.3008]
[1719324363312,7.2982,137.02,136.96,25.5544]
[1719324363627,11.72261242,137.04,136.99,7.2993]
[1719324363814,15.3151,137.06,137.0,7.2989]
[1719324363815,22.6113,137.06,137.0,7.2989]
[1719324364014,27.35853224,137.09,137.01,7.2987]
[1719324364428,28.51833224,137.09,137.02,40.543]
[1719324364636,21.22383224,137.09,137.03,0.17]
[1719324364809,21.22383224,137.09,137.02,40.543]
[1719324365413,28.51843224,137.09,137.02,40.543]
[1719324365711,28.51843224,137.09,137.03,0.17]
[1719324365912,21.22383224,137.09,137.04,18.242]
[1719324366235,9.50121982,137.09,137.05,7.2962]
[1719324366822,9.50121982,137.09,137.04,25.5389]
[1719324367123,15.2015,137.14,137.08,7.2949]
[1719324367124,9.50121982,137.14,137.08,7.2949]
[1719324367705,16.79331982,137.14,137.08,25.532]
[1719324367931,16.79331982,137.14,137.05,0.17]
[1719324367932,7.2944,137.1,137.05,0.17]
[1719324368233,7.2944,137.1,137.05,0.34]
[1719324368638,7.2935,137.11,137.05,7.6365]
[1719324369319,21.22383224,137.13,137.02,29.5955]
[1719324369515,7.2955,137.07,137.02,29.5955]
[1719324369710,28.35751242,137.11,137.02,22.2978]
[1719324369944,11.72261242,137.1,137.02,22.2978]
[1719324370142,11.72261242,137.1,137.02,29.5959]
[1719324370319,7.2954,137.08,137.02,29.5959]
[1719324370511,11.72261242,137.08,136.98,58.0941]
[1719324370820,7.2963,137.06,136.99,7.2993]
[1719324371021,7.2963,137.06,136.98,58.0941]
[1719324371225,7.2963,137.06,137.0,7.2991]
[1719324371537,11.72261242,137.09,136.99,18.2487]
[1719324371731,7.2962,137.06,137.0,7.2992]
[1719324372045,129.95951242,137.09,136.98,15.1392]
[1719324372238,7.2974,137.04,136.98,40.6892]
[1719324372736,18.2392,137.07,136.95,76.7125]
[1719324372906,7.2965,137.06,137.0,7.2992]
[1719324373942,7.2956,137.07,137.01,7.2983]
[1719324374114,11.72261242,137.09,137.03,7.2976]
[1719324374442,7.2948,137.09,137.03,7.2976]
[1719324374667,7.2939,137.1,137.04,7.2968]
[1719324374972,23.9285,137.11,137.05,7.2966]
[1719324375174,7.2936,137.11,137.06,7.296]
[1719324375462,11.72261242,137.12,137.07,0.17]
[1719324375763,16.0262,137.14,137.02,21.2912]
[1719324375946,7.2949,137.09,137.02,21.2912]
[1719324376153,7.2949,137.09,137.03,25.8811]
[1719324376354,7.2941,137.1,137.04,7.297]
[1719324376657,7.2953,137.08,137.03,18.5839]
[1719324376844,7.2953,137.08,137.03,0.17]
[1719324377446,7.2955,137.07,137.02,21.2912]
[1719324377656,24.4184,137.12,137.02,28.5893]
[1719324377970,121.22383224,137.13,137.07,7.2951]
[1719324377971,7.2925,137.13,137.07,7.2951]
[1719324379355,16.0262,137.14,137.06,18.2398]
[1719324379777,7.2929,137.12,137.06,25.5355]
[1719324380178,7.2925,137.13,137.07,7.2951]
[1719324380360,9.50121982,137.16,137.11,7.2933]
[1719324380563,34.22901242,137.19,137.12,18.2315]
[1719324380864,34.22901242,137.19,137.12,18.4015]
[1719324381075,27.57531242,137.19,137.12,18.4015]
[1719324381283,11.72261242,137.19,137.13,7.2921]
[1719324381494,11.72261242,137.19,137.13,0.17]
[1719324381702,9.50121982,137.2,137.15,7.2912]
[1719324381869,16.78981982,137.2,137.14,25.6908]
[1719324382072,16.78981982,137.2,137.15,0.17]
[1719324382878,21.22383224,137.2,137.13,0.17]
[1719324383081,7.2897,137.18,137.12,7.6325]
[1719324383292,7.2892,137.19,137.13,7.2923]
[1719324383471,21.22383224,137.2,137.12,0.34]
[1719324383669,7.2913,137.15,137.09,7.294]
[1719324383883,39.44703224,137.19,137.08,18.2368]
[1719324384189,18.2262,137.17,137.07,21.9137]
[1719324384491,27.91393224,137.16,137.05,18.2409]
[1719324384795,7.2946,137.09,137.03,7.2976]
[1719324384961,18.3989,137.15,137.04,18.2424]
[1719324385165,11.89261242,137.14,137.04,18.2424]
[1719324385386,7.2934,137.11,137.05,7.2965]
[1719324385594,11.89261242,137.14,137.04,18.2424]
[1719324385767,11.89261242,137.14,137.05,7.2964]
[1719324386168,7.2939,137.11,137.05,7.2964]
[1719324386368,7.2939,137.1,137.04,25.5393]
[1719324386692,7.2935,137.11,137.05,7.2964]
[1719324388066,11.72261242,137.14,137.06,18.2399]
[1719324388690,7.2928,137.12,137.06,18.2399]
[1719324388876,7.2924,137.13,137.06,18.2399]
[1719324389293,19.01451242,137.14,137.08,7.2944]
[1719324389473,9.50121982,137.15,137.08,18.237]
[1719324389979,9.50121982,137.15,137.08,25.5319]
[1719324390489,7.2927,137.13,137.07,0.17]
[1719324390794,7.2929,137.12,137.07,0.34]
[1719324391173,7.41380854,137.19,137.08,22.1326]
[1719324391478,7.2892,137.19,137.13,7.2922]
[1719324392277,21.17327668,137.21,137.14,7.2917]
[1719324392584,21.17327668,137.21,137.16,7.2906]
[1719324393169,21.17327668,137.21,137.15,1.45676523]
[1719324393367,7.289,137.2,137.15,1.45676523]
[1719324393773,21.17327668,137.21,137.12,0.17]
[1719324393969,7.29,137.18,137.11,0.34]
[1719324394185,9.45066426,137.2,137.1,18.2342]
[1719324394511,21.17327668,137.2,137.12,18.2315]
[1719324394801,25.84268394,137.23,137.12,18.2315]
[1719324394971,25.84268394,137.23,137.13,7.2922]
[1719324394972,7.2895,137.19,137.13,7.2922]
[1719324395394,7.2886,137.2,137.14,7.2917]
[1719324395785,7.2887,137.2,137.14,7.2917]
[1719324395993,7.2882,137.21,137.15,7.2911]
[1719324396374,7.2882,137.21,137.16,25.5172]
[1719324396677,7.2876,137.22,137.16,25.5172]
[1719324396881,21.17327668,137.23,137.15,21.2464]
[1719324397100,21.17327668,137.23,137.13,18.2306]
[1719324397408,39.39247668,137.22,137.12,21.5864]
[1719324397580,18.2218,137.2,137.12,21.2464]
[1719324397775,7.2905,137.17,137.12,21.2464]
[1719324397982,7.2908,137.16,137.12,21.2464]
[1719324398285,7.2908,137.16,137.11,7.2933]
[1719324398679,7.2904,137.17,137.11,7.2933]
[1719324399082,7.2904,137.17,137.12,1.45695528]
[1719324399282,27.67246426,137.2,137.1,25.5275]
[1719324399283,7.2908,137.16,137.1,25.5275]
[1719324399491,27.67246426,137.2,137.1,25.5275]
[1719324399788,11.72261242,137.19,137.1,25.5275]
[1719324399988,7.291,137.16,137.1,7.2934]
[1719324400172,7.2908,137.16,137.1,7.2938]
[1719324400573,7.2908,137.16,137.11,7.2933]
[1719324401105,21.17327668,137.19,137.12,7.2925]
[1719324401483,21.17327668,137.19,137.11,18.2334]
[1719324401678,7.29,137.18,137.12,0.17]
[1719324401991,28.46247668,137.19,137.13,25.5226]
[1719324402197,7.2897,137.18,137.13,18.2307]
[1719324402381,7.2902,137.17,137.12,7.4626]
[1719324402576,21.17327668,137.19,137.12,7.4628]
[1719324402577,7.2898,137.18,137.12,7.4628]
[1719324403177,7.2903,137.17,137.12,0.17]
[1719324403379,7.2898,137.18,137.12,7.6326]
[1719324403603,7.292,137.14,137.09,21.2464]
[1719324404206,27.67576426,137.18,137.1,9.23624096]
[1719324404393,27.67576426,137.18,137.1,7.4635]
[1719324404590,27.67576426,137.18,137.1,0.17]
[1719324404903,7.2921,137.14,137.09,21.2464]
[1719324405109,7.2914,137.15,137.09,28.5406]
[1719324405310,7.2914,137.15,137.1,1.76996218]
[1719324405478,7.2912,137.16,137.1,9.06376218]
[1719324405683,7.2894,137.19,137.09,57.7161]
[1719324405884,9.45066426,137.21,137.13,7.2919]
[1719324406199,7.2901,137.18,137.12,25.5243]
[1719324406911,18.2223,137.2,137.09,39.4821]
[1719324407201,39.39557668,137.2,137.1,7.6339]
[1719324407409,7.2913,137.15,137.1,7.6339]
[1719324407603,7.2913,137.15,137.1,0.34]
[1719324407802,7.2909,137.16,137.1,7.6337]
[1719324408104,7.2904,137.17,137.11,7.2932]
[1719324408401,7.2908,137.16,137.11,7.2932]
[1719324408608,7.2919,137.14,137.09,39.4821]
[1719324408998,7.2916,137.15,137.09,28.5408]
[1719324409209,7.2921,137.14,137.09,21.2464]
[1719324409403,7.2914,137.15,137.09,28.5405]
[1719324409714,7.2919,137.14,137.09,21.2464]
[1719324410088,7.2925,137.13,137.09,21.2464]
[1719324410505,7.292,137.14,137.09,21.2464]
[1719324410712,9.45066426,137.19,137.1,18.2345]
[1719324410893,7.2899,137.18,137.12,7.2925]
[1719324411202,7.2902,137.17,137.11,7.2933]
[1719324411507,7.2902,137.17,137.12,7.2928]
[1719324411693,7.2902,137.17,137.11,7.2932]
[1719324412784,7.2902,137.17,137.12,7.2927]
[1719324412984,7.2902,137.17,137.11,7.2932]
[1719324413311,7.2905,137.17,137.12,18.2321]
[1719324414107,16.73986426,137.19,137.13,18.2301]
[1719324414285,9.45066426,137.19,137.15,7.2908]
[1719324414618,11.72261242,137.2,137.15,7.2908]
[1719324414909,11.72261242,137.2,137.15,18.2275]
[1719324415209,16.73826426,137.22,137.16,7.2903]
[1719324415705,16.73826426,137.22,137.17,7.2901]
[1719324416398,9.45066426,137.22,137.18,7.2896]
[1719324416595,0.832609,137.26,137.16,0.34]
[1719324417100,8.118209,137.26,137.2,7.2882]
[1719324418094,7.286,137.25,137.19,25.6813]
[1719324418284,7.286,137.25,137.2,0.17]
[1719324418713,7.286,137.25,137.2,7.4585]
[1719324418915,7.286,137.25,137.21,0.17]
[1719324419093,7.2861,137.25,137.2,0.17]
[1719324419414,8.118309,137.26,137.2,7.6284]
[1719324419812,8.118109,137.26,137.2,7.6284]
[1719324420001,8.118109,137.26,137.21,1.57699537]
[1719324420312,0.832609,137.26,137.2,0.34]
[1719324420519,8.118509,137.26,137.2,0.34]
[1719324420689,0.832609,137.26,137.2,0.34]
[1719324421019,0.832609,137.26,137.22,13.5261]
[1719324421512,0.832609,137.26,137.22,6.239]
[1719324421686,8.118109,137.26,137.22,6.239]
[1719324421886,0.832609,137.26,137.22,6.239]
[1719324422098,0.832609,137.26,137.21,16.2097]
[1719324422300,0.832609,137.26,137.22,0.17]
[1719324422501,0.832609,137.26,137.25,7.2859]
[1719324422809,0.832609,137.26,137.25,7.4559]
[1719324423603,0.832609,137.26,137.25,0.17]
[1719324424001,0.832609,137.26,137.25,13.5999]
[1719324424190,0.832609,137.26,137.25,13.7699]
[1719324425101,0.832609,137.26,137.25,0.34]
[1719324425285,0.832609,137.26,137.21,22.7667]
[1719324425492,0.832609,137.26,137.24,7.2864]
[1719324425708,0.832609,137.26,137.22,7.2875]
[1719324425910,0.832609,137.26,137.21,30.0546]
[1719324426119,0.832609,137.26,137.21,30.0547]
[1719324426508,0.832609,137.26,137.22,18.2186]
[1719324426709,0.832609,137.26,137.22,25.506]
[1719324427095,0.832609,137.26,137.21,22.9367]
[1719324427295,0.832609,137.26,137.22,0.17]
[1719324427508,0.832609,137.26,137.23,7.2866]
[1719324427796,0.832609,137.26,137.25,7.2859]
[1719324427995,0.832609,137.26,137.25,7.4559]
[1719324428612,0.832609,137.26,137.25,9.08476954]
[1719324429216,0.832609,137.26,137.25,9.73983237]
[1719324429738,0.832609,137.26,137.25,7.6259]
[1719324431618,7.61825442,137.3,137.29,25.4934]
[1719324431918,7.2802,137.36,137.3,7.2829]
[1719324432502,7.2802,137.36,137.31,0.78877915]
[1719324433007,7.2807,137.35,137.29,25.8333]
[1719324433411,33.2252979,137.38,137.31,18.2066]
[1719324433610,25.61396426,137.38,137.31,18.2066]
[1719324433812,7.28,137.37,137.31,25.4889]
[1719324434616,25.61396426,137.38,137.31,18.2066]
[1719324434814,9.45066426,137.37,137.29,7.4537]
[1719324435002,7.2807,137.35,137.29,7.4537]
[1719324435324,7.2813,137.34,137.29,0.17]
[1719324435526,7.2813,137.34,137.28,25.6646]
[1719324435710,9.45066426,137.37,137.28,18.3803]
[1719324436023,7.2807,137.35,137.29,7.4533]
[1719324436219,7.2812,137.34,137.29,0.17]
[1719324436421,7.2806,137.35,137.29,0.17]
[1719324436724,7.2812,137.34,137.29,0.17]
[1719324437223,7.2807,137.35,137.29,7.4536]
[1719324437423,7.2813,137.34,137.29,0.17]
[1719324437806,7.2808,137.35,137.29,7.4538]
[1719324438014,7.2807,137.35,137.29,7.2836]
[1719324438322,27.2803,137.36,137.3,7.2832]
[1719324438515,7.2808,137.35,137.29,7.2837]
[1719324439306,9.45066426,137.37,137.3,18.3778]
[1719324439506,0.8561149,137.4,137.36,7.2799]
[1719324440126,0.8561149,137.4,137.37,7.2794]
[1719324440509,0.8561149,137.4,137.34,7.2811]
[1719324440709,0.8561149,137.4,137.35,0.17]
[1719324441110,0.8561149,137.4,137.35,7.2806]
[1719324441505,8.1341149,137.4,137.35,7.2806]
[1719324441707,0.8561149,137.4,137.35,7.2806]
[1719324442124,0.8561149,137.4,137.36,7.2801]
[1719324442324,0.8561149,137.4,137.35,25.482]
[1719324442521,8.1341149,137.4,137.35,25.482]
[1719324442715,7.2785,137.39,137.33,13.9159]
[1719324443224,8.1343149,137.4,137.34,7.281]
[1719324443613,8.1343149,137.4,137.35,7.2806]
[1719324444219,12.57872732,137.4,137.31,41.5024]
[1719324444428,25.41009789,137.39,137.31,25.489]
[1719324444733,25.41009789,137.39,137.31,18.2063]
[1719324445030,32.68859789,137.39,137.33,18.2039]
[1719324445230,25.41009789,137.39,137.33,25.4855]
[1719324445525,25.41009789,137.39,137.33,18.2039]
[1719324445526,7.2794,137.38,137.33,18.2039]
[1719324445731,7.2794,137.38,137.33,25.4856]
[1719324446028,7.2805,137.36,137.3,25.4903]
[1719324446227,7.2797,137.37,137.31,7.2826]
[1719324446432,7.2792,137.38,137.32,7.2821]
[1719324446615,25.41009789,137.39,137.31,7.2826]
[1719324446616,7.2798,137.37,137.31,7.2826]
[1719324446810,7.2798,137.37,137.3,18.2072]
[1719324447029,25.41009789,137.39,137.29,6.067]
[1719324447332,47.28507668,137.39,137.3,0.17]
[1719324447536,47.28507668,137.39,137.31,18.2063]
[1719324447724,54.56397668,137.39,137.33,18.2039]
[1719324447923,54.56397668,137.39,137.33,25.4854]
[1719324448134,47.28507668,137.39,137.32,7.282]
[1719324448314,7.2796,137.37,137.31,7.2827]
[1719324448512,47.28507668,137.39,137.31,7.2826]
[1719324448718,7.2801,137.36,137.3,25.6601]
[1719324449337,7.2808,137.35,137.28,16.2479]
[1719324449568,7.2812,137.34,137.29,7.2837]
[1719324449913,7.2812,137.34,137.28,23.5321]
[1719324450839,6.5678,137.34,137.24,33.2591]
[1719324451018,7.2836,137.3,137.24,25.5023]
[1719324451738,11.72261242,137.3,137.21,18.2191]
[1719324451937,11.72261242,137.3,137.23,7.2866]
[1719324451938,19.00631242,137.3,137.23,7.2866]
[1719324452139,100.0,137.32,137.18,6.4552]
[1719324452326,7.2849,137.27,137.21,7.2877]
[1719324452523,11.72261242,137.29,137.2,18.2208]
[1719324452845,11.72261242,137.29,137.17,70.301]
[1719324452846,11.72261242,137.27,137.17,70.301]
[1719324453137,7.2865,137.24,137.18,7.2893]
[1719324454642,11.72261242,137.27,137.17,52.0758]
[1719324454824,19.00761242,137.27,137.21,25.507]
[1719324455024,11.72261242,137.27,137.21,18.2195]
[1719324455224,11.72261242,137.27,137.23,25.5039]
[1719324455641,11.72261242,137.27,137.21,7.2876]
[1719324455818,19.00751242,137.27,137.21,7.2876]
[1719324456441,7.2854,137.26,137.2,25.6791]
[1719324456637,7.2861,137.25,137.2,18.2206]
[1719324457139,7.2855,137.26,137.21,7.288]
[1719324457337,28.45827668,137.27,137.21,7.288]
[1719324457923,9.45066426,137.26,137.17,33.8512]
[1719324458133,7.2868,137.24,137.18,7.4592]
[1719324459126,7.2868,137.24,137.19,7.289]
[1719324459329,7.2861,137.25,137.19,7.289]
[1719324460248,27.66476426,137.26,137.17,18.2247]
[1719324460452,7.287,137.24,137.17,18.2247]
[1719324460619,7.287,137.24,137.18,7.2892]
[1719324461144,48.45937668,137.25,137.19,7.289]
[1719324461724,7.2865,137.24,137.19,7.289]
[1719324462142,21.17327668,137.25,137.19,18.2224]
[1719324462349,28.45937668,137.25,137.19,25.5113]
[1719324462543,21.17327668,137.25,137.2,7.2881]
[1719324462846,28.45937668,137.25,137.19,25.6814]
[1719324463034,7.287,137.23,137.18,7.2895]
[1719324463234,7.287,137.23,137.17,7.29]
[1719324463635,7.2866,137.24,137.18,7.2895]
[1719324464239,21.17327668,137.25,137.2,7.2882]
[1719324464440,21.17327668,137.25,137.19,7.2889]
[1719324464631,28.45937668,137.25,137.19,8.95871731]
[1719324465154,28.45927668,137.25,137.2,18.2213]
[1719324465531,7.2869,137.24,137.18,7.2895]
[1719324465726,28.45917668,137.25,137.19,18.2221]
[1719324465956,21.17327668,137.25,137.19,18.2221]
[1719324466252,28.45937668,137.25,137.19,25.5112]
[1719324466751,7.2866,137.24,137.19,25.5111]
[1719324466941,28.45937668,137.25,137.19,25.5111]
[1719324467345,7.2865,137.24,137.19,25.5111]
[1719324467535,7.2865,137.24,137.19,18.2221]
[1719324467853,7.287,137.23,137.17,7.2901]
[1719324468653,16.73716426,137.24,137.18,7.2895]
[1719324468849,16.73716426,137.24,137.18,18.2238]
[1719324469032,9.45066426,137.24,137.17,7.29]
[1719324469240,7.2882,137.21,137.15,18.2272]
[1719324469449,23.8863,137.22,137.16,7.2906]
[1719324469841,23.8863,137.22,137.17,7.2901]
[1719324470138,16.5986,137.22,137.17,7.2901]
[1719324471539,16.5986,137.22,137.18,7.2896]
[1719324471732,28.45987668,137.24,137.18,8.59101648]
[1719324472039,27.2872,137.23,137.17,25.5151]
[1719324472244,7.2876,137.22,137.17,25.5151]
[1719324473332,21.17327668,137.24,137.19,18.2219]
[1719324473534,23.9501,137.25,137.19,25.5108]
[1719324473752,16.6639,137.25,137.2,8.85370586]
[1719324474052,16.6639,137.25,137.21,9.79308812]
[1719324474447,7.2861,137.25,137.21,2.50528812]
[1719324474653,7.2855,137.26,137.2,2.50880432]
[1719324474853,7.2855,137.26,137.21,2.50865881]
[1719324475742,9.45066426,137.26,137.21,2.50865881]
[1719324475947,9.45066426,137.26,137.19,18.3919]
[1719324475948,7.2867,137.24,137.19,18.3919]
[1719324476254,7.2867,137.24,137.2,0.17]
[1719324476452,16.73656426,137.26,137.2,7.4585]
[1719324476953,16.73656426,137.26,137.21,1.4554588]
[1719324477160,16.73656426,137.26,137.21,8.7434588]
[1719324477538,7.2861,137.25,137.2,0.17]
[1719324477952,7.2861,137.25,137.2,7.4585]
[1719324478154,7.2861,137.25,137.2,0.17]
[1719324478353,9.45066426,137.26,137.21,1.45492416]
[1719324478556,7.2866,137.24,137.21,1.45492416]
[1719324479333,7.2866,137.24,137.2,0.17]
[1719324479334,9.45066426,137.26,137.2,1.45492416]
[1719324479570,39.38707668,137.26,137.17,7.2897]
[1719324479758,7.2871,137.23,137.18,7.2896]
[1719324479939,7.2871,137.23,137.17,7.2899]
[1719324480554,7.2871,137.23,137.18,25.5136]
[1719324481064,7.2889,137.2,137.15,18.227]
[1719324481259,7.2889,137.2,137.15,25.5181]
[1719324481862,15.0885,137.21,137.13,6.2363]
[1719324482047,7.2876,137.22,137.16,18.2268]
[1719324482248,7.2881,137.21,137.16,25.5173]
[1719324482643,7.2887,137.2,137.14,7.2916]
[1719324482853,7.2882,137.21,137.15,7.2909]
[1719324483055,39.39117668,137.23,137.14,7.6316]
[1719324483254,7.2897,137.18,137.14,0.34]
[1719324483466,7.2905,137.17,137.1,33.3683]
[1719324483652,11.72261242,137.18,137.1,33.3683]
[1719324483861,7.2909,137.16,137.1,40.6619]
[1719324484153,7.2912,137.15,137.1,18.2343]
[1719324485276,11.72261242,137.15,137.07,16.1278]
[1719324485572,7.293,137.12,137.07,16.1278]
[1719324485866,7.2925,137.13,137.07,23.4232]
[1719324486070,7.2929,137.12,137.06,25.5347]
[1719324486383,7.2937,137.11,137.05,7.2964]
[1719324486963,19.01551242,137.12,137.06,7.296]
[1719324487174,7.2936,137.11,137.05,25.5366]
[1719324487373,7.2936,137.11,137.06,7.2959]
[1719324487573,19.01561242,137.12,137.06,7.2959]
[1719324487959,19.01561242,137.12,137.07,7.2955]
[1719324488277,7.2935,137.11,137.05,25.5369]
[1719324488755,7.2935,137.11,137.06,7.296]
[1719324489552,19.01561242,137.12,137.06,7.296]
[1719324490242,20.73140854,137.18,137.12,7.2927]
[1719324490471,13.3176,137.18,137.12,7.2927]
[1719324490766,7.2903,137.17,137.12,8.35179062]
[1719324491074,7.291,137.16,137.11,18.2331]
[1719324491245,6.0278,137.18,137.1,7.6334]
[1719324491246,7.2913,137.15,137.1,7.6334]
[1719324491447,7.2913,137.15,137.1,0.34]
[1719324492048,7.2913,137.15,137.1,7.6339]